bitfinex-derivatives/quotes_SOLF0:USTF0_20240820
["timestamp","ask_amount","ask_price","bid_price","bid_amount"]
[1724184191423,3.4728,143.96,143.94,0.05286039]
[1724184192022,3.473,143.95,143.94,0.05286039]
[1724184197623,3.4728,143.96,143.94,10.73286039]
[1724184198328,0.053018,143.97,143.95,10.68]
[1724184198925,3.525618,143.97,143.95,10.68]
[1724184200829,3.4727,143.96,143.94,0.05286039]
[1724184201325,3.473,143.95,143.94,0.05286039]
[1724184202516,3.4736,143.93,143.87,1.3678]
[1724184202716,3.4736,143.93,143.9,10.68]
[1724184202922,10.68,143.95,143.87,1.3678]
[1724184203126,10.68,143.95,143.88,10.68]
[1724184203629,0.04984923,143.93,143.9,0.0462337]
[1724184205530,3.52344923,143.93,143.9,0.0462337]
[1724184207941,0.04984923,143.93,143.9,0.0462337]
[1724184208633,0.04984923,143.93,143.9,30.2103337]
[1724184212832,3.52344923,143.93,143.9,0.0462337]
[1724184213228,3.4739,143.92,143.9,0.0462337]
[1724184214829,0.04984923,143.93,143.9,0.0462337]
[1724184215232,3.4739,143.92,143.9,0.0462337]
[1724184220844,3.52334923,143.93,143.9,0.0462337]
[1724184221146,3.52334923,143.93,143.9,3.5204337]
[1724184221344,0.04984923,143.93,143.9,3.5204337]
[1724184221643,0.04984923,143.93,143.9,0.0462337]
[1724184222042,3.52344923,143.93,143.9,0.0462337]
[1724184222343,0.04984923,143.93,143.9,0.0462337]
[1724184223133,3.52334923,143.93,143.9,3.5202337]
[1724184224440,3.52334923,143.93,143.9,14.2002337]
[1724184225344,3.4737,143.92,143.9,10.7262337]
[1724184225540,3.4737,143.92,143.9,0.0462337]
[1724184227437,3.52344923,143.93,143.9,10.7262337]
[1724184227832,3.52344923,143.93,143.9,14.2003337]
[1724184228442,0.04984923,143.93,143.9,14.2003337]
[1724184230334,0.04984923,143.93,143.91,3.4738]
[1724184241848,0.04984923,143.93,143.92,14.1537]
[1724184243653,1.241,143.99,143.92,10.68]
[1724184243848,1.241,143.99,143.94,10.68]
[1724184244059,3.4726,143.97,143.94,10.68]
[1724184244359,3.4726,143.97,143.94,14.1531]
[1724184244550,3.4724,143.98,143.94,10.68]
[1724184244759,0.0528671,143.97,143.94,10.72570896]
[1724184245049,0.0528671,143.97,143.94,14.19880896]
[1724184246863,3.5254671,143.97,143.94,10.72570896]
[1724184247557,3.5254671,143.97,143.94,14.19890896]
[1724184251365,19.69476125,144.07,143.96,10.68]
[1724184251567,3.45740021,144.07,144.0,10.68]
[1724184251767,3.4709,144.04,144.0,10.68]
[1724184252259,0.04401363,144.03,144.01,0.050638]
[1724184254775,3.51521363,144.03,144.01,0.050638]
[1724184255676,3.4713,144.02,144.01,0.050638]
[1724184256167,3.4716,144.01,143.95,1.2497]
[1724184256371,3.4716,144.01,143.96,10.68]
[1724184256763,3.4716,144.01,143.97,3.4723]
[1724184256968,3.4714,144.02,143.95,1.2497]
[1724184257271,2.6431,144.05,143.99,14.152]
[1724184257573,3.4712,144.03,143.99,10.68]
[1724184257763,3.52186111,144.03,144.01,0.04594109]
[1724184258465,0.05066111,144.03,144.01,0.04594109]
[1724184259668,1.3616,144.08,144.01,0.04594109]
[1724184259669,1.3616,144.08,144.02,10.68]
[1724184259971,10.68,144.14,144.06,10.68]
[1724184260175,3.4691,144.11,144.07,10.68]
[1724184260673,0.04452967,144.1,144.08,0.04773773]
[1724184262376,3.4696,144.09,144.08,0.04773773]
[1724184264568,3.4705,144.06,144.03,10.68]
[1724184265678,3.51531995,144.06,144.03,10.72480577]
[1724184266474,0.04481995,144.06,144.03,0.04480577]
[1724184267074,3.4708,144.05,144.03,0.04480577]
[1724184268782,3.4708,144.04,144.03,0.04480577]
[1724184284890,3.4707,144.05,144.03,0.04480577]
[1724184285096,3.4707,144.05,144.03,10.72480577]
[1724184285293,0.04481995,144.06,144.03,10.72480577]
[1724184285493,0.04481995,144.06,144.04,10.68]
[1724184287097,0.04481995,144.06,144.04,14.1508]
[1724184287487,0.04481995,144.06,144.03,0.04480577]
[1724184287692,0.04481995,144.06,144.03,10.72480577]
[1724184288294,3.51521995,144.06,144.03,10.72480577]
[1724184288994,0.04481995,144.06,144.03,14.19570577]
[1724184290197,0.04481995,144.06,144.04,10.68]
[1724184292588,0.04481995,144.06,144.04,14.1507]
[1724184292798,0.04481995,144.06,144.05,10.68]
[1724184293093,0.04481995,144.06,144.05,14.1505]
[1724184293497,3.4697,144.09,144.05,14.1505]
[1724184293694,9.5988,144.13,144.07,10.68]
[1724184293997,3.4697,144.09,144.07,10.68]
[1724184294385,3.5190918,144.09,144.07,10.72845085]
[1724184294589,10.7293918,144.09,143.99,2.6257]
[1724184294795,1.2496,144.12,144.02,10.68]
[1724184295099,3.4701,144.07,144.04,10.68]
[1724184295697,3.51773308,144.07,144.04,10.72622693]
[1724184296988,0.04763308,144.07,144.05,10.68]
[1724184300705,0.04763308,144.07,144.06,10.68]
[1724184303395,0.04763308,144.07,144.06,14.1503]
[1724184303600,1.3274,144.13,144.09,10.68]
[1724184303800,1.3274,144.13,144.04,0.04622693]
[1724184303801,1.2556,144.16,144.11,10.68]
[1724184304101,3.4687,144.13,144.11,10.68]
[1724184304902,3.5126535,144.13,144.11,10.72534333]
[1724184306595,0.0439535,144.13,144.11,10.72534333]
[1724184307400,0.0439535,144.13,144.12,10.68]
[1724184313906,0.0439535,144.13,144.12,14.1489]
[1724184314810,1.3706,144.19,144.15,3.4681]
[1724184315109,1.3706,144.19,144.16,10.68]
[1724184315405,4.8379,144.19,144.16,10.68]
[1724184315999,4.88378642,144.19,144.16,10.72763405]
[1724184317206,1.41648642,144.19,144.16,10.72763405]
[1724184317511,0.04588642,144.19,144.18,10.68]
[1724184317813,0.04588642,144.19,144.16,10.72763405]
[1724184318907,3.51308642,144.19,144.16,10.72763405]
[1724184323312,0.04588642,144.19,144.18,10.68]
[1724184331310,0.04588642,144.19,144.16,10.72763405]
[1724184331512,0.04588642,144.19,144.16,0.04763405]
[1724184332310,3.4677,144.17,144.16,0.04763405]
[1724184335523,10.68,144.18,144.06,1.3697]
[1724184335721,10.68,144.18,144.12,10.68]
[1724184335722,12.0538,144.18,144.12,10.68]
[1724184336023,3.4683,144.15,144.12,10.68]
[1724184336426,3.51457469,144.15,144.12,10.72795531]
[1724184336916,3.51457469,144.15,144.13,10.68]
[1724184338420,0.04627469,144.15,144.13,10.68]
[1724184342317,3.51447469,144.15,144.13,10.68]
[1724184344741,3.51447469,144.15,144.12,0.04795531]
[1724184344925,3.51447469,144.15,144.13,10.68]
[1724184351546,3.4684,144.14,144.12,0.04795531]
[1724184351738,0.04627469,144.15,144.12,0.04795531]
[1724184352447,3.51457469,144.15,144.12,0.04795531]
[1724184357841,0.04627469,144.15,144.12,0.04795531]
[1724184359946,3.51447469,144.15,144.12,0.04795531]
[1724184374558,0.04627469,144.15,144.12,0.04795531]
[1724184375463,3.51447469,144.15,144.12,0.04795531]
[1724184378265,0.04627469,144.15,144.13,10.68]
[1724184385870,0.04627469,144.15,144.14,10.68]
[1724184386270,4.8359,144.19,144.14,14.1484]
[1724184386468,4.8359,144.19,144.16,10.68]
[1724184386670,3.4674,144.19,144.16,10.68]
[1724184387271,0.05246152,144.19,144.16,10.72940141]
[1724184387869,0.05246152,144.19,144.16,14.19720141]
[1724184389678,0.05246152,144.19,144.18,10.68]
[1724184392076,0.05246152,144.19,144.16,10.72940141]
[1724184394973,3.51966152,144.19,144.16,10.72940141]
[1724184396691,0.05246152,144.19,144.16,10.72940141]
[1724184399382,3.51966152,144.19,144.16,0.04940141]
[1724184399589,3.51966152,144.19,144.17,10.68]
[1724184399980,0.05246152,144.19,144.17,10.68]
[1724184404597,0.05246152,144.19,144.18,10.68]
[1724184409993,0.05246152,144.19,144.16,3.51730141]
[1724184409994,0.05246152,144.19,144.17,10.68]
[1724184412396,0.05246152,144.19,144.18,10.68]
[1724184413698,0.05246152,144.19,144.18,14.1474]
[1724184416902,15.44305194,144.25,144.18,10.68]
[1724184416903,1.3681,144.25,144.18,10.68]
[1724184417100,1.3681,144.25,144.21,10.68]
[1724184418000,0.04664994,144.24,144.23,10.68]
[1724184418304,0.04664994,144.24,144.22,10.72823886]
[1724184418694,3.51264994,144.24,144.22,0.04823886]
[1724184419498,0.04664994,144.24,144.22,0.04823886]
[1724184420403,3.51264994,144.24,144.22,0.04823886]
[1724184421903,0.04664994,144.24,144.22,0.04823886]
[1724184422107,0.04664994,144.24,144.23,10.68]
[1724184426202,0.04664994,144.24,144.23,14.1462]
[1724184426893,0.04664994,144.24,144.23,10.68]
[1724184427706,0.04664994,144.24,144.23,14.1462]
[1724184429902,0.04664994,144.24,144.23,10.68]
[1724184431105,0.04664994,144.24,144.23,14.1462]
[1724184431309,0.04664994,144.24,144.23,10.68]
[1724184432208,0.78489582,144.26,144.23,10.68]
[1724184432404,0.78489582,144.26,144.25,10.68]
[1724184433308,0.78489582,144.26,144.22,0.04823886]
[1724184433498,0.78489582,144.26,144.23,10.68]
[1724184433907,0.78489582,144.26,144.24,10.68]
[1724184435008,0.78489582,144.26,144.23,10.68]
[1724184436018,0.78489582,144.26,144.25,10.68]
[1724184441314,0.78489582,144.26,144.23,3.4662]
[1724184441619,0.78489582,144.26,144.24,10.68]
[1724184443826,0.78489582,144.26,144.25,10.68]
[1724184452321,0.78489582,144.26,144.22,0.04823886]
[1724184453027,4.25049582,144.26,144.22,0.04823886]
[1724184453229,0.78489582,144.26,144.22,0.04823886]
[1724184454116,0.78489582,144.26,144.23,10.68]
[1724184455726,0.78489582,144.26,144.22,3.51463886]
[1724184456022,0.78489582,144.26,144.25,10.68]
[1724184458733,0.78489582,144.26,144.24,10.68]
[1724184458935,0.78489582,144.26,144.25,10.68]
[1724184468342,0.78489582,144.26,144.25,14.1457]
[1724184471645,0.72332147,144.29,144.28,3.465]
[1724184473844,0.72332147,144.29,144.28,6.89306026]
[1724184474145,0.05043776,144.3,144.29,3.4648]
[1724184474334,0.05043776,144.3,144.29,14.1448]
[1724184474537,1.92532237,144.32,144.31,3.4643]
[1724184474846,1.92532237,144.32,144.31,14.1443]
[1724184476441,1.92532237,144.32,144.31,10.68]
[1724184480042,0.59565461,144.35,144.31,10.68]
[1724184480347,3.97486785,144.4,144.34,10.68]
[1724184480546,3.94761821,144.43,144.39,10.68]
[1724184480743,3.94761821,144.43,144.38,3.4625]
[1724184480744,3.94761821,144.43,144.42,10.68]
[1724184480938,0.48611821,144.43,144.42,10.68]
[1724184483248,3.94751821,144.43,144.42,10.68]
[1724184483650,0.48611821,144.43,144.42,10.68]
[1724184487551,0.48611821,144.43,144.41,0.05174668]
[1724184487952,0.48611821,144.43,144.41,10.73174668]
[1724184488953,0.48611821,144.43,144.42,10.68]
[1724184489961,0.85420684,144.44,144.42,10.68]
[1724184491354,0.85420684,144.44,144.41,0.05174668]
[1724184492054,0.85420684,144.44,144.42,10.68]
[1724184493659,0.85420684,144.44,144.42,14.1416]
[1724184493859,0.85420684,144.44,144.42,10.68]
[1724184494467,0.85420684,144.44,144.43,10.68]
[1724184494962,0.85420684,144.44,144.41,0.05174668]
[1724184495268,0.85420684,144.44,144.41,10.73174668]
[1724184495651,0.85420684,144.44,144.41,14.19364668]
[1724184495856,0.85420684,144.44,144.41,10.73174668]
[1724184496262,0.85420684,144.44,144.41,0.05174668]
[1724184496449,10.68,144.42,144.36,3.41664805]
[1724184496757,3.4621,144.41,144.37,10.68]
[1724184497549,0.05174668,144.4,144.38,0.0438914]
[1724184498456,0.05174668,144.4,144.39,10.68]
[1724184503362,0.05174668,144.4,144.38,10.7238914]
[1724184504363,0.05174668,144.4,144.38,0.0438914]
[1724184506263,0.05174668,144.4,144.35,14.1431]
[1724184506563,10.68,144.36,144.29,10.68]
[1724184506867,3.4635,144.35,144.29,14.1446]
[1724184507469,0.04578054,144.33,144.31,0.04515549]
[1724184509870,3.50978054,144.33,144.31,0.04515549]
[1724184510369,0.04578054,144.33,144.31,0.04515549]
[1724184510568,3.4641,144.32,144.31,0.04515549]
[1724184510876,0.04578054,144.33,144.31,0.04515549]
[1724184511962,3.4641,144.32,144.31,0.04515549]
[1724184517777,0.04578054,144.33,144.31,10.72515549]
[1724184520273,0.04578054,144.33,144.31,0.04515549]
[1724184521392,0.04578054,144.33,144.31,10.72515549]
[1724184522594,0.04578054,144.33,144.31,0.04515549]
[1724184522891,0.04578054,144.33,144.32,10.68]
[1724184524895,0.04578054,144.33,144.31,0.04515549]
[1724184525094,0.04578054,144.33,144.31,10.72515549]
[1724184526993,0.04578054,144.33,144.31,14.18935549]
[1724184528097,0.04578054,144.33,144.32,3.4641]
[1724184528390,1.3723,144.4,144.31,14.25580342]
[1724184528595,2.7021,144.43,144.39,10.68]
[1724184528793,1.3298,144.43,144.42,10.68]
[1724184529097,1.3298,144.43,144.39,3.4623]
[1724184529392,4.77849048,144.47,144.36,3.47523262]
[1724184529393,4.77849048,144.47,144.42,10.68]
[1724184529586,4.77849048,144.47,144.45,10.68]
[1724184529782,3.40619048,144.47,144.45,10.68]
[1724184530187,3.40619048,144.47,144.45,14.1409]
[1724184530383,3.40619048,144.47,144.45,26.58]
[1724184530896,3.40619048,144.47,144.45,26.62783731]
[1724184531800,3.40619048,144.47,144.45,0.04783731]
[1724184532390,6.86679048,144.47,144.45,0.04783731]
[1724184532598,3.40619048,144.47,144.4,26.58]
[1724184532996,3.4607,144.46,144.4,26.58]
[1724184533491,0.04783731,144.44,144.42,0.04746774]
[1724184533892,0.04783731,144.44,144.42,26.62746774]
[1724184535204,0.04783731,144.44,144.42,0.04746774]
[1724184539498,3.50903731,144.44,144.42,0.04746774]
[1724184539701,0.04783731,144.44,144.42,0.04746774]
[1724184539910,0.04783731,144.44,144.38,26.58]
[1724184540107,34.01856088,144.46,144.38,26.58]
[1724184540502,3.4616,144.43,144.36,26.58]
[1724184540703,26.58,144.45,144.36,26.58]
[1724184540908,0.04659803,144.42,144.39,0.05335038]
[1724184541103,3.50839803,144.42,144.39,0.05335038]
[1724184541304,0.04659803,144.42,144.3,27.68]
[1724184541507,26.58,144.45,144.34,26.58]
[1724184541705,26.58,144.45,144.35,3.4633]
[1724184542301,3.4619,144.42,144.35,3.4633]
[1724184542509,0.04985199,144.41,144.39,0.04994982]
[1724184542901,3.51175199,144.41,144.39,0.04994982]
[1724184543102,0.04985199,144.41,144.39,0.04994982]
[1724184546711,0.04985199,144.41,144.39,3.51214982]
[1724184547420,0.04985199,144.41,144.39,0.04994982]
[1724184548115,0.04985199,144.41,144.3,27.68]
[1724184548116,26.58,144.42,144.32,26.58]
[1724184548420,3.4636,144.34,144.33,6.12361317]
[1724184548713,26.58,144.39,144.28,26.58]
[1724184548911,2.7155,144.38,144.29,6.12921926]
[1724184549113,0.05235888,144.35,144.32,0.05060178]
[1724184549819,0.05235888,144.35,144.29,6.13015997]
[1724184550018,26.58,144.37,144.26,26.58]
[1724184550220,26.58,144.37,144.27,6.13182486]
[1724184550525,2.7155,144.38,144.3,26.58]
[1724184550723,2.7155,144.38,144.32,26.58]
[1724184550925,0.04832928,144.36,144.34,0.04426554]
[1724184552026,0.04832928,144.36,144.35,26.58]
[1724184552228,1.2815,144.45,144.37,26.58]
[1724184552423,4.7425,144.45,144.37,30.0428]
[1724184552726,3.40619048,144.47,144.42,26.58]
[1724184552922,6.86689048,144.47,144.42,26.58]
[1724184553324,0.04794121,144.46,144.43,0.04585786]
[1724184554427,0.04794121,144.46,144.44,26.58]
[1724184554617,0.04794121,144.46,144.43,0.04585786]
[1724184555925,0.04794121,144.46,144.44,26.58]
[1724184558027,0.04794121,144.46,144.43,0.04585786]
[1724184559328,3.50874121,144.46,144.43,0.04585786]
[1724184559735,0.04794121,144.46,144.43,0.04585786]
[1724184560133,0.04794121,144.46,144.39,26.58]
[1724184560134,1.37734121,144.46,144.39,26.58]
[1724184560325,3.4611,144.45,144.39,26.58]
[1724184560628,3.4611,144.45,144.39,30.0424]
[1724184561031,3.4612,144.44,144.41,0.04934909]
[1724184561239,1.336,144.45,144.41,0.04934909]
[1724184561628,3.4616,144.43,144.41,0.04934909]
[1724184562832,1.336,144.45,144.34,54.26]
[1724184563031,1.336,144.45,144.36,26.58]
[1724184563233,3.4621,144.41,144.34,54.26]
[1724184563437,26.58,144.43,144.32,27.8819]
[1724184563835,26.58,144.43,144.36,0.04746695]
[1724184563836,0.0512183,144.39,144.36,0.04746695]
[1724184564029,3.5137183,144.39,144.36,0.04746695]
[1724184566342,0.0512183,144.39,144.3,26.58]
[1724184566528,26.58,144.4,144.32,26.58]
[1724184566834,3.4628,144.38,144.32,26.58]
[1724184567035,26.58,144.42,144.32,26.58]
[1724184567434,3.51183487,144.38,144.36,0.04497867]
[1724184567832,0.04913487,144.38,144.36,0.04497867]
[1724184575660,3.51193487,144.38,144.36,0.04497867]
[1724184576557,3.4628,144.38,144.36,0.04497867]
[1724184576755,0.96578527,144.51,144.37,53.16]
[1724184577060,0.96578527,144.51,144.46,26.58]
[1724184577353,0.96578527,144.51,144.37,96.18307912]
[1724184577354,0.96578527,144.51,144.47,26.58]
[1724184577750,2.0570295,144.49,144.47,26.58]
[1724184580453,2.0570295,144.49,144.46,3.50612169]
[1724184580857,2.0570295,144.49,144.46,0.04552169]
[1724184581551,5.5170295,144.49,144.46,0.04552169]
[1724184582356,4.81828537,144.48,144.46,0.04552169]
[1724184582562,1.35788537,144.48,144.46,0.04552169]
[1724184582956,1.35788537,144.48,144.41,36.6817]
[1724184583355,1.35788537,144.48,144.41,33.22]
[1724184583558,3.4607,144.46,144.41,33.22]
[1724184583751,1.35788537,144.48,144.41,33.22]
[1724184583955,0.04692754,144.46,144.43,0.05132374]
[1724184584751,3.50782754,144.46,144.43,0.05132374]
[1724184584956,0.04692754,144.46,144.43,0.05132374]
[1724184586865,3.50772754,144.46,144.43,0.05132374]
[1724184587869,0.04692754,144.46,144.43,0.05132374]
[1724184590861,3.50772754,144.46,144.43,0.05132374]
[1724184591569,0.04692754,144.46,144.43,0.05132374]
[1724184592161,3.50782754,144.46,144.43,0.05132374]
[1724184592762,0.04692754,144.46,144.43,0.05132374]
[1724184593671,3.50772754,144.46,144.43,0.05132374]
[1724184594860,3.4611,144.45,144.43,0.05132374]
[1724184596975,3.50762754,144.46,144.43,0.05132374]
[1724184598082,7.01066485,144.46,144.43,0.05132374]
[1724184598380,3.4618,144.42,144.36,33.22]
[1724184598673,3.50303731,144.46,144.38,33.22]
[1724184598873,2.5476,144.47,144.39,6.12425982]
[1724184599071,2.5476,144.47,144.37,33.22]
[1724184599274,0.05178992,144.43,144.41,0.05230655]
[1724184599468,0.05178992,144.43,144.38,6.12444207]
[1724184599664,0.05178992,144.43,144.35,6.12444207]
[1724184599865,1.2541,144.43,144.36,6.12565807]
[1724184600071,1.2541,144.43,144.35,3.4632]
[1724184600072,3.462,144.41,144.35,3.4632]
[1724184600474,0.04895431,144.39,144.37,0.04933858]
[1724184601064,0.04895431,144.39,144.37,33.26933858]
[1724184601274,3.8017,144.47,144.38,33.22]
[1724184601679,3.4612,144.44,144.38,36.6824]
[1724184601874,3.4612,144.44,144.38,33.22]
[1724184602069,3.8017,144.47,144.38,33.22]
[1724184602378,0.04806894,144.44,144.41,0.04663349]
[1724184603979,3.4617,144.43,144.41,0.04663349]
[1724184604181,0.04806894,144.44,144.41,0.04663349]
[1724184604481,3.50936894,144.44,144.41,0.04663349]
[1724184604780,0.04806894,144.44,144.41,0.04663349]
[1724184605169,3.50936894,144.44,144.41,0.04663349]
[1724184606478,3.4615,144.43,144.41,0.04663349]
[1724184606680,0.04806894,144.44,144.41,0.04663349]
[1724184607073,3.50936894,144.44,144.41,0.04663349]
[1724184608076,3.4615,144.43,144.41,0.04663349]
[1724184608270,0.04806894,144.44,144.41,0.04663349]
[1724184609179,0.04806894,144.44,144.41,26.61663349]
[1724184609774,0.04806894,144.44,144.41,0.04663349]
[1724184611177,3.50936894,144.44,144.41,0.04663349]
[1724184611677,0.04806894,144.44,144.41,0.04663349]
[1724184613981,3.50926894,144.44,144.41,0.04663349]
[1724184614976,3.4615,144.43,144.41,0.04663349]
[1724184615285,0.04806894,144.44,144.41,0.04663349]
[1724184616075,3.4617,144.42,144.41,0.04663349]
[1724184616281,29.1176,144.47,144.37,26.57]
[1724184616482,3.4619,144.42,144.36,3.463]
[1724184616691,26.57,144.45,144.35,26.57]
[1724184616990,1.3569,144.41,144.35,26.57]
[1724184617492,0.04903681,144.39,144.37,0.0461057]
[1724184621688,3.4626,144.38,144.37,0.0461057]
[1724184621882,0.04903681,144.39,144.37,0.0461057]
[1724184622283,3.51153681,144.39,144.37,0.0461057]
[1724184622590,0.04903681,144.39,144.37,0.0461057]
[1724184622791,0.04903681,144.39,144.29,27.68]
[1724184622988,1.353,144.4,144.32,30.0339]
[1724184623182,1.353,144.4,144.33,6.12892333]
[1724184623387,3.4628,144.38,144.33,6.12892333]
[1724184623587,3.4628,144.38,144.33,9.59272333]
[1724184623791,0.04453237,144.37,144.34,6.1750164]
[1724184623997,3.50743237,144.37,144.35,6.12892333]
[1724184624189,3.50743237,144.37,144.34,0.04609307]
[1724184624994,3.4634,144.35,144.34,0.04609307]
[1724184628890,1.3398,144.36,144.34,0.04609307]
[1724184630390,3.4634,144.35,144.34,0.04609307]
[1724184630695,1.3398,144.36,144.31,6.13288369]
[1724184630896,1.3286,144.35,144.28,26.57]
[1724184631089,1.3286,144.35,144.29,6.13334837]
[1724184631490,1.2435,144.34,144.26,26.57]
[1724184631693,0.04505538,144.31,144.29,0.05139412]
[1724184632385,3.50955538,144.31,144.29,0.05139412]
[1724184632789,0.04505538,144.31,144.29,0.05139412]
[1724184633088,3.4646,144.3,144.29,0.05139412]
[1724184634295,0.04505538,144.31,144.29,0.05139412]
[1724184635894,3.50945538,144.31,144.29,0.05139412]
[1724184637397,0.04505538,144.31,144.29,0.05139412]
[1724184638401,0.04505538,144.31,144.3,26.57]
[1724184639803,0.04505538,144.31,144.3,30.0346]
[1724184640006,0.04505538,144.31,144.3,26.57]
[1724184641095,0.04505538,144.31,144.3,30.0346]
[1724184642005,0.04505538,144.31,144.29,0.05139412]
[1724184642402,0.04505538,144.31,144.29,3.51609412]
[1724184645002,0.04505538,144.31,144.29,0.05139412]
[1724184645805,0.04505538,144.31,144.29,3.51619412]
[1724184646402,0.04505538,144.31,144.3,3.4646]
[1724184646705,33.4938,144.42,144.3,26.57]
[1724184647008,33.4938,144.42,144.26,26.57]
[1724184647009,3.463,144.37,144.33,26.57]
[1724184647708,0.04564204,144.36,144.34,0.04804788]
[1724184650411,1.2675,144.41,144.35,26.57]
[1724184650611,1.2675,144.41,144.36,26.57]
[1724184650815,4.7294,144.41,144.36,30.033]
[1724184651011,4.7294,144.41,144.36,26.57]
[1724184651511,0.04609603,144.4,144.37,0.04732786]
[1724184653416,3.4626,144.38,144.37,0.04732786]
[1724184654217,26.61609603,144.4,144.37,0.04732786]
[1724184654918,3.4626,144.39,144.37,0.04732786]
[1724184655125,26.61609603,144.4,144.37,0.04732786]
[1724184655619,3.4626,144.38,144.37,0.04732786]
[1724184656118,0.04609603,144.4,144.37,0.04732786]
[1724184656615,3.4625,144.39,144.37,0.04732786]
[1724184656820,0.04609603,144.4,144.37,0.04732786]
[1724184657020,3.4625,144.39,144.37,0.04732786]
[1724184658725,3.4626,144.38,144.37,0.04732786]
[1724184659917,0.04609603,144.4,144.37,0.04732786]
[1724184660320,3.4626,144.38,144.37,0.04732786]
[1724184661417,3.4634,144.35,144.29,26.57]
[1724184661716,26.57,144.38,144.3,6.12641118]
[1724184662024,3.4635,144.35,144.3,6.12641118]
[1724184662410,0.0444231,144.34,144.31,0.05300135]
[1724184662617,3.5080231,144.34,144.31,0.05300135]
[1724184663225,0.0444231,144.34,144.31,0.05300135]
[1724184664414,0.0444231,144.34,144.32,6.12712264]
[1724184665221,3.5081231,144.34,144.32,6.12712264]
[1724184665923,0.0444231,144.34,144.32,6.12712264]
[1724184668218,0.0444231,144.34,144.31,3.51720135]
[1724184668417,0.0444231,144.34,144.32,6.12713483]
[1724184668618,0.0444231,144.34,144.31,3.51720135]
[1724184668820,0.0444231,144.34,144.32,9.59107994]
[1724184669022,0.0444231,144.34,144.32,3.464]
[1724184669521,0.0444231,144.34,144.33,3.4638]
[1724184669823,1.2491,144.39,144.33,16.76672592]
[1724184670026,11.8891,144.39,144.32,10.64]
[1724184670219,3.463,144.37,144.33,9.58993952]
[1724184670521,3.463,144.37,144.33,3.4638]
[1724184670736,3.463,144.37,144.34,0.04739475]
[1724184670928,0.04468397,144.36,144.34,0.04739475]
[1724184671314,0.04468397,144.36,144.34,6.17274546]
[1724184672116,0.04468397,144.36,144.34,3.51099475]
[1724184672327,0.04468397,144.36,144.34,0.04739475]
[1724184673122,0.04468397,144.36,144.34,6.17284411]
[1724184674534,3.50778397,144.36,144.34,6.17284411]
[1724184674726,3.50778397,144.36,144.34,0.04739475]
[1724184674927,0.04468397,144.36,144.34,0.04739475]
[1724184675726,3.4634,144.35,144.34,0.04739475]
[1724184676533,0.04468397,144.36,144.34,0.04739475]
[1724184677034,0.04468397,144.36,144.34,6.17293103]
[1724184678734,0.04468397,144.36,144.34,9.63653103]
[1724184678937,0.04468397,144.36,144.34,3.51099475]
[1724184679135,0.04468397,144.36,144.35,6.12469229]
[1724184680128,0.04468397,144.36,144.35,6.12451207]
[1724184680428,0.04468397,144.36,144.34,3.51099475]
[1724184680624,0.04468397,144.36,144.35,6.12460344]
[1724184681933,0.04468397,144.36,144.35,6.12459819]
[1724184685541,3.50778397,144.36,144.35,6.12459819]
[1724184685725,3.50778397,144.36,144.34,0.04739475]
[1724184685726,0.04468397,144.36,144.34,0.04739475]
[1724184685929,10.68468397,144.36,144.34,0.04739475]
[1724184686237,3.4634,144.35,144.34,0.04739475]
[1724184687233,3.4634,144.35,144.34,6.17685681]
[1724184688034,3.4634,144.35,144.34,0.04739475]
[1724184688230,14.1034,144.35,144.34,0.04739475]
[1724184688429,15.4425,144.35,144.34,0.04739475]
[1724184691541,11.9791,144.35,144.34,0.04739475]
[1724184692750,15.4425,144.35,144.34,0.04739475]
[1724184694743,11.9791,144.35,144.34,0.04739475]
[1724184694943,10.68468397,144.36,144.34,0.04739475]
[1724184695243,10.68468397,144.36,144.34,6.17512811]
[1724184695545,14.14788397,144.36,144.34,0.04739475]
[1724184696332,14.14788397,144.36,144.34,6.17455105]
[1724184696538,14.14788397,144.36,144.34,0.04739475]
[1724184697534,14.14788397,144.36,144.34,6.17454265]
[1724184697740,14.14788397,144.36,144.34,0.04739475]
[1724184698736,14.14788397,144.36,144.34,6.18085283]
[1724184698940,10.68468397,144.36,144.34,0.04739475]
[1724184699539,14.14788397,144.36,144.34,0.04739475]